{"text_format":"1","workbook":"xlsx","n_sheets":3,"sheets":["Welcome","Spreadsheet","Commentry"],"not_rendered":{"charts":1,"images":0,"macros":1,"external_links":0,"defined_names":0,"comments":0,"pivot_tables":0},"unopened":[],"bounds":{"document_bytes":16777216,"sheet_cells":100000,"rows_first":2000,"rows_last":500,"rows_between":2000,"halvings":0,"cell_chars":16384,"cell_head_chars":4096},"cells_cut":0,"cells_raw":0,"read":"whole","date_system":"1900"}

{"sheet":"Welcome","index":0,"n_rows":1,"n_cols":1,"rows_kept":1,"cut":false,"hidden":false,"merged":[]}
["Mail to Bioscand AB"]

{"sheet":"Spreadsheet","index":1,"n_rows":87,"n_cols":12,"rows_kept":87,"cut":false,"hidden":false,"merged":[]}
["Normalized Resistance Interpretation, NRI, calculations on disc diffusion test results"]
["Species:",null,"Antimicrob.",null,null,"Temperature",null,"degrees celsius",{"$f":"B2&\" \"&D2","v":" "},null,"Tolerance:",0.15]
[]
["Zone diam","No isolates",null,null,null,null,null,"% Observations","% NRI"]
[]
[6,null,null,null,null,null,null,{"$f":"100*B6/$B$87","v":{"$error":"#DIV/0!"}},{"$f":"(NORMSDIST(($E$8*A7)+$E$9-5)-NORMSDIST(($E$8*A6)+$E$9-5))*100","v":0}]
[7,null,null,null,null,null,null,{"$f":"100*B7/$B$87","v":{"$error":"#DIV/0!"}},{"$f":"(NORMSDIST(($E$8*A8)+$E$9-5)-NORMSDIST(($E$8*A7)+$E$9-5))*100","v":0}]
[8,null,null,"Eq.const A",null,null,null,{"$error":"#DIV/0!"},0]
[9,null,null,"Const B",null,null,null,{"$error":"#DIV/0!"},0]
[10,null,null,null,null,null,null,{"$error":"#DIV/0!"},0]
[11,null,null,null,null,null,null,{"$error":"#DIV/0!"},0]
[12,null,null,null,null,null,null,{"$error":"#DIV/0!"},0]
[13,null,null,null,null,null,null,{"$error":"#DIV/0!"},0]
[14,null,null,"WT ≥ mm",null,null,null,{"$error":"#DIV/0!"},0]
[15,null,null,null,null,null,null,{"$error":"#DIV/0!"},0]
[16,null,null,null,"mm zone",null,null,{"$error":"#DIV/0!"},0]
[17,null,null,"Mean =",null,null,null,{"$error":"#DIV/0!"},0]
[18,null,null,null,null,null,null,{"$error":"#DIV/0!"},0]
[19,null,null,"SD -2.5",null,null,null,{"$error":"#DIV/0!"},0]
[20,null,null,null,null,null,null,{"$error":"#DIV/0!"},0]
[21,null,null,"SD",null,null,null,{"$error":"#DIV/0!"},0]
[22,null,null,null,null,null,null,{"$error":"#DIV/0!"},0]
[23,null,null,null,null,null,null,{"$error":"#DIV/0!"},0]
[24,null,null,null,null,null,null,{"$error":"#DIV/0!"},0]
[25,null,null,null,null,null,null,{"$error":"#DIV/0!"},0]
[26,null,null,null,null,null,null,{"$error":"#DIV/0!"},0]
[27,null,null,null,null,null,null,{"$error":"#DIV/0!"},0]
[28,null,null,null,null,null,null,{"$error":"#DIV/0!"},0]
[29,null,null,null,null,null,null,{"$error":"#DIV/0!"},0]
[30,null,null,null,null,null,null,{"$error":"#DIV/0!"},0]
[31,null,null,null,null,null,null,{"$error":"#DIV/0!"},0]
[32,null,null,null,null,null,null,{"$error":"#DIV/0!"},0]
[33,null,null,null,null,null,null,{"$error":"#DIV/0!"},0]
[34,null,null,null,null,null,null,{"$error":"#DIV/0!"},0]
[35,null,null,null,null,null,null,{"$error":"#DIV/0!"},0]
[36,null,null,null,null,null,null,{"$error":"#DIV/0!"},0]
[37,null,null,null,null,null,null,{"$error":"#DIV/0!"},0]
[38,null,null,null,null,null,null,{"$error":"#DIV/0!"},0]
[39,null,null,null,null,null,null,{"$error":"#DIV/0!"},0]
[40,null,null,null,null,null,null,{"$error":"#DIV/0!"},0]
[41,null,null,null,null,null,null,{"$error":"#DIV/0!"},0]
[42,null,null,null,null,null,null,{"$error":"#DIV/0!"},0]
[43,null,null,null,null,null,null,{"$error":"#DIV/0!"},0]
[44,null,null,null,null,null,null,{"$error":"#DIV/0!"},0]
[45,null,null,null,null,null,null,{"$error":"#DIV/0!"},0]
[46,null,null,null,null,null,null,{"$error":"#DIV/0!"},0]
[47,null,null,null,null,null,null,{"$error":"#DIV/0!"},0]
[48,null,null,null,null,null,null,{"$error":"#DIV/0!"},0]
[49,null,null,null,null,null,null,{"$error":"#DIV/0!"},0]
[50,null,null,null,null,null,null,{"$error":"#DIV/0!"},0]
[51,null,null,null,null,null,null,{"$error":"#DIV/0!"},0]
[52,null,null,null,null,null,null,{"$error":"#DIV/0!"},0]
[53,null,null,null,null,null,null,{"$error":"#DIV/0!"},0]
[54,null,null,null,null,null,null,{"$error":"#DIV/0!"},0]
[55,null,null,null,null,null,null,{"$error":"#DIV/0!"},0]
[56,null,null,null,null,null,null,{"$error":"#DIV/0!"},0]
[57,null,null,null,null,null,null,{"$error":"#DIV/0!"},0]
[58,null,null,null,null,null,null,{"$error":"#DIV/0!"},0]
[59,null,null,null,null,null,null,{"$error":"#DIV/0!"},0]
[60,null,null,null,null,null,null,{"$error":"#DIV/0!"},0]
[61,null,null,null,null,null,null,{"$error":"#DIV/0!"},0]
[62,null,null,null,null,null,null,{"$error":"#DIV/0!"},0]
[63,null,null,null,null,null,null,{"$error":"#DIV/0!"},0]
[64,null,null,null,null,null,null,{"$error":"#DIV/0!"},0]
[65,null,null,null,null,null,null,{"$error":"#DIV/0!"},0]
[66]
[67]
[68]
[69]
[70]
[71]
[72]
[73]
[74]
[75]
[76]
[77]
[78]
[79]
[80]
[81]
[82]
[83]
[84]
[85]
[]
["Total",{"$f":"SUM(B6:B85)","v":0}]

{"sheet":"Commentry","index":2,"n_rows":0,"n_cols":0,"rows_kept":0,"cut":false,"hidden":false,"merged":[]}